bitfinex/quotes_SOLUSD_20250601
["timestamp","ask_amount","ask_price","bid_price","bid_amount"]
[1748790514645,6.52826739,153.18,153.14,20.37007549]
[1748790516144,6.52826739,153.18,153.15,20.37007549]
[1748790516965,6.52826739,153.18,153.14,20.37007549]
[1748790517859,26.89834288,153.18,153.14,20.37007549]
[1748790520947,6.52826739,153.18,153.14,20.37007549]
[1748790522457,6.52826739,153.18,153.15,20.37007549]
[1748790522776,6.52758673,153.2,153.17,20.37007549]
[1748790524476,6.52698909,153.21,153.17,20.37007549]
[1748790526069,26.89706458,153.21,153.17,20.37007549]
[1748790526267,26.89706458,153.21,153.14,6.52968619]
[1748790526479,26.89706458,153.21,153.17,20.37007549]
[1748790531185,26.89706458,153.21,153.16,20.37007549]
[1748790533361,6.52784124,153.19,153.16,20.37007549]
[1748790535281,20.37007549,153.2,153.16,20.37007549]
[1748790535872,26.89706458,153.21,153.16,20.37007549]
[1748790536058,26.89706458,153.21,153.17,20.37007549]
[1748790536680,6.52698909,153.21,153.18,20.37007549]
[1748790537656,26.89706458,153.21,153.14,17.06981722]
[1748790538071,26.89706458,153.21,153.17,20.37007549]
[1748790538868,26.89706458,153.21,153.16,20.37007549]
[1748790539095,20.37007549,153.19,153.15,20.37007549]
[1748790540101,20.37007549,153.19,153.14,10.54]
[1748790540102,20.37007549,153.17,153.14,10.54]
[1748790540461,26.89834288,153.18,153.13,20.37007549]
[1748790541183,6.52800426,153.19,153.15,20.37007549]
[1748790541680,6.52800426,153.19,153.12,6.53075139]
[1748790541887,6.52800426,153.19,153.15,20.37007549]
[1748790542058,150.5478,153.23,153.17,20.37007549]
[1748790542261,6.52656311,153.22,153.19,20.37007549]
[1748790542476,6.52656311,153.22,153.18,20.37007549]
[1748790543197,20.37007549,153.21,153.15,10.54]
[1748790543362,20.37007549,153.21,153.13,20.37007549]
[1748790543363,20.37007549,153.18,153.13,20.37007549]
[1748790543567,20.37007549,153.17,153.13,20.37007549]
[1748790544578,6.52911987,153.16,153.13,20.37007549]
[1748790545685,6.52883541,153.17,153.13,20.37007549]
[1748790546991,26.8984432,153.18,153.13,26.90041808]
[1748790547187,20.37007549,153.2,153.16,20.37007549]
[1748790547594,20.37007549,153.2,153.15,20.37007549]
[1748790548095,26.89749063,153.2,153.15,20.37007549]
[1748790549675,26.89749063,153.2,153.16,20.37007549]
[1748790551684,6.52741514,153.2,153.17,20.37007549]
[1748790551889,21.91787549,153.23,153.19,20.37007549]
[1748790552103,21.91787549,153.23,153.2,20.37007549]
[1748790552104,1.5478,153.23,153.2,20.37007549]
[1748790552271,1.5478,153.23,153.19,20.37007549]
[1748790552888,8.07409455,153.23,153.19,20.37007549]
[1748790556399,28.44417004,153.23,153.19,20.37007549]
[1748790559705,149.0,153.24,153.21,20.37007549]
[1748790560002,149.0,153.24,153.22,20.37007549]
[1748790560707,40.52172435,153.27,153.22,20.37007549]
[1748790560913,40.52172435,153.27,153.19,66.22]
[1748790560914,6.52498649,153.26,153.23,20.37007549]
[1748790561109,6.52498649,153.26,153.22,20.37007549]
[1748790561296,20.37007549,153.25,153.2,20.37007549]
[1748790562308,20.37007549,153.25,153.21,20.37007549]
[1748790562811,6.5257113,153.24,153.21,20.37007549]
[1748790565017,6.5257113,153.24,153.19,66.22]
[1748790565310,6.5257113,153.24,153.2,20.37007549]
[1748790565898,6.5257113,153.24,153.21,20.37007549]
[1748790569116,20.37007549,153.26,153.21,20.37007549]
[1748790569117,6.52528548,153.25,153.21,20.37007549]
[1748790569522,26.89536097,153.25,153.19,66.22]
[1748790569708,26.89536097,153.25,153.2,20.37007549]
[1748790572123,26.89536097,153.25,153.19,66.22]
[1748790572329,26.89536097,153.25,153.2,20.37007549]
[1748790573230,20.37007549,153.24,153.2,20.37007549]
[1748790573423,20.37007549,153.23,153.18,20.37007549]
[1748790573722,20.37007549,153.23,153.16,17.0373]
[1748790573923,20.37007549,153.22,153.17,20.37007549]
[1748790574626,20.37007549,153.22,153.18,20.37007549]
[1748790575027,6.52698909,153.21,153.18,20.37007549]
[1748790575524,6.52698909,153.21,153.17,20.37007549]
[1748790576303,6.52698909,153.21,153.18,20.37007549]
[1748790577826,149.0,153.25,153.2,20.37007549]
[1748790578030,169.37007549,153.25,153.21,20.37007549]
[1748790578536,20.37007549,153.24,153.2,20.37007549]
[1748790579120,26.89578679,153.24,153.2,20.37007549]
[1748790582647,26.89578679,153.24,153.19,20.37007549]
[1748790582648,20.37007549,153.23,153.19,20.37007549]
[1748790583705,6.52656311,153.22,153.19,20.37007549]
[1748790586040,6.5257113,153.24,153.19,20.37007549]
[1748790586337,26.89578679,153.24,153.19,20.37007549]
[1748790586532,26.89578679,153.24,153.2,20.37007549]
[1748790588247,155.52542646,153.25,153.21,20.37007549]
[1748790588538,155.52542646,153.25,153.22,20.37007549]
[1748790588934,149.0,153.25,153.2,20.37007549]
[1748790589241,149.0,153.25,153.24,20.37007549]
[1748790589417,1.502,153.27,153.24,20.37007549]
[1748790589915,21.87207549,153.27,153.23,20.37007549]
[1748790590114,6.52511098,153.26,153.23,20.37007549]
[1748790590312,6.52511098,153.26,153.22,20.37007549]
[1748790592123,20.37007549,153.25,153.21,20.37007549]
[1748790593135,6.5257113,153.24,153.21,20.37007549]
[1748790594023,6.5257113,153.24,153.2,20.37007549]
[1748790594548,26.89578679,153.24,153.2,20.37007549]
[1748790594947,6.5257113,153.24,153.2,20.37007549]
[1748790595137,6.52485971,153.26,153.22,20.37007549]
[1748790595318,6.52485971,153.26,153.23,20.37007549]
[1748790595722,6.52485971,153.26,153.18,32.52811621]
[1748790595920,6.52485971,153.26,153.22,20.37007549]
[1748790596830,6.52485971,153.26,153.23,20.37007549]
[1748790597025,6.52485971,153.26,153.22,20.37007549]
[1748790598933,26.8949352,153.26,153.22,20.37007549]
[1748790600167,22.83700899,153.26,153.21,20.37007549]
[1748790600331,20.37007549,153.23,153.19,30.87007549]
[1748790600530,20.37007549,153.25,153.2,20.37007549]
[1748790600769,20.37007549,153.25,153.21,20.37007549]
[1748790600955,20.37007549,153.24,153.19,30.87007549]
[1748790601942,6.52613717,153.23,153.19,30.87007549]
[1748790602144,6.52613717,153.23,153.2,20.37007549]
[1748790602347,6.52579788,153.24,153.21,20.37007549]
[1748790603940,6.52544953,153.25,153.22,20.37007549]
[1748790604135,6.52485971,153.26,153.23,20.37007549]
[1748790608854,6.52485971,153.26,153.2,46.70728861]
[1748790608855,8.02649126,153.27,153.24,20.37007549]
[1748790609059,6.52449126,153.27,153.25,20.37007549]
[1748790609368,6.52449126,153.27,153.24,20.37007549]
[1748790609576,6.52400835,153.28,153.24,20.37007549]
[1748790612754,6.52400835,153.28,153.26,20.37007549]
[1748790614078,6.52400835,153.28,153.25,20.37007549]
[1748790614259,6.52358275,153.29,153.25,20.37007549]
[1748790614886,26.89365824,153.29,153.25,20.37007549]
[1748790615179,26.89365824,153.29,153.24,20.37007549]
[1748790617186,20.37007549,153.28,153.24,20.37007549]
[1748790618496,20.37007549,153.29,153.24,20.37007549]
[1748790618685,20.37007549,153.29,153.25,20.37007549]
[1748790619672,6.52400835,153.28,153.25,20.37007549]
[1748790619875,6.52371822,153.29,153.26,20.37007549]
[1748790620888,6.52371822,153.29,153.27,20.37007549]
[1748790621071,26.89323269,153.3,153.26,20.37007549]
[1748790621466,6.5231572,153.3,153.27,20.37007549]
[1748790622490,26.89323269,153.3,153.26,20.37007549]
[1748790629300,6.52278952,153.31,153.28,20.37007549]
[1748790632600,26.89238177,153.32,153.28,20.37007549]
[1748790632979,6.52230628,153.32,153.28,20.37007549]
[1748790635179,6.52230628,153.32,153.25,46.68512698]
[1748790635180,6.52230628,153.32,153.29,20.37007549]
[1748790636096,6.52230628,153.32,153.25,46.68512698]
[1748790636097,6.52230628,153.32,153.3,20.37007549]
[1748790636795,6.52230628,153.32,153.25,46.68512698]
[1748790636796,6.52188091,153.33,153.29,20.37007549]
[1748790637501,26.8919564,153.33,153.29,20.37007549]
[1748790637685,26.8919564,153.33,153.28,20.37007549]
[1748790638508,26.8919564,153.33,153.29,20.37007549]
[1748790643406,13.06634487,153.33,153.29,13.06634487]
[1748790644815,6.52230628,153.32,153.29,13.06634487]
[1748790646198,13.06634487,153.31,153.27,13.06634487]
[1748790646398,13.06634487,153.31,153.23,89.6]
[1748790646399,13.06634487,153.28,153.23,89.6]
[1748790646597,13.06634487,153.27,153.22,23.54634487]
[1748790646812,19.59120458,153.26,153.22,23.54634487]
[1748790647318,19.59120458,153.26,153.22,30.91564744]
[1748790647319,26.96050715,153.26,153.22,30.91564744]
[1748790649522,20.43564744,153.27,153.23,20.43564744]
[1748790651503,6.52485971,153.26,153.23,20.43564744]
[1748790654541,16.31003454,153.28,153.24,20.43564744]
[1748790654714,36.74568198,153.28,153.24,20.43564744]
[1748790654915,20.43564744,153.28,153.24,20.43564744]
[1748790655130,26.95923019,153.29,153.25,20.43564744]
[1748790655849,20.43564744,153.28,153.24,20.43564744]
[1748790656622,6.524434,153.27,153.24,20.43564744]
[1748790658742,6.524434,153.27,153.25,20.43564744]
[1748790659436,1.6424,153.3,153.22,17.00651554]
[1748790659437,20.43564744,153.3,153.26,20.43564744]
[1748790659837,26.95837916,153.31,153.27,20.43564744]
[1748790660045,20.43564744,153.3,153.26,20.43564744]
[1748790660540,26.95965579,153.28,153.23,20.43564744]
[1748790660846,20.43564744,153.27,153.23,20.43564744]
[1748790661030,26.95965579,153.28,153.23,20.43564744]
[1748790661443,26.95965579,153.28,153.24,20.43564744]
[1748790665533,20.43564744,153.27,153.23,20.43564744]
[1748790665747,6.52485971,153.26,153.23,20.43564744]
[1748790668425,6.52485971,153.26,153.24,20.43564744]
[1748790669232,6.52485971,153.26,153.24,13.07531657]
[1748790669535,6.524434,153.27,153.24,13.07531657]
[1748790673259,13.07531657,153.25,153.18,10.48]
[1748790673558,13.07531657,153.23,153.18,63.69531657]
[1748790673860,13.07531657,153.23,153.19,13.07531657]
[1748790674248,6.52656311,153.22,153.19,13.07531657]
[1748790675134,19.60187968,153.22,153.18,10.48]
[1748790675339,13.07531657,153.2,153.18,10.48]
[1748790675557,13.07531657,153.19,153.15,13.07531657]
[1748790675866,13.07531657,153.2,153.15,13.07531657]
[1748790676371,19.60358396,153.18,153.14,23.55531657]
[1748790677266,6.52826739,153.18,153.15,20.4543693]
[1748790677637,20.4543693,153.21,153.17,20.4543693]
[1748790678753,26.98135839,153.21,153.16,20.4543693]
[1748790680170,26.98135839,153.21,153.17,20.4543693]
[1748790680171,6.52698909,153.21,153.17,20.4543693]
[1748790680462,8.15619945,153.22,153.19,20.4543693]
[1748790680958,8.15619945,153.22,153.18,20.4543693]
[1748790681473,8.15619945,153.22,153.17,20.4543693]
[1748790681474,20.4543693,153.21,153.17,20.4543693]
[1748790682247,6.52741514,153.2,153.17,20.4543693]
[1748790682945,6.52741514,153.2,153.16,20.4543693]
[1748790686260,6.52741514,153.2,153.17,20.4543693]
[1748790686579,6.52701574,153.21,153.17,20.4543693]
[1748790688349,26.98138504,153.21,153.17,20.4543693]
[1748790688971,26.98138504,153.21,153.15,26.0]
[1748790689269,26.98138504,153.21,153.16,20.4543693]
[1748790691147,26.98138504,153.21,153.17,20.4543693]
[1748790702870,26.98138504,153.21,153.16,20.4543693]
[1748790706494,6.52784124,153.19,153.15,26.0]
[1748790706686,6.52784124,153.19,153.16,20.4543693]
[1748790707887,6.52741514,153.2,153.16,20.4543693]
[1748790709175,6.52741514,153.2,153.16,13.08746677]
[1748790710696,6.52741514,153.2,153.17,13.08746677]
[1748790712176,6.52741514,153.2,153.16,13.08746677]
[1748790712577,13.08746677,153.19,153.15,13.08746677]
[1748790712783,13.08746677,153.19,153.14,13.08746677]
[1748790714325,13.08746677,153.19,153.13,36.46]
[1748790714326,19.61616037,153.17,153.13,10.46]
[1748790714509,13.08746677,153.16,153.13,10.46]
[1748790715305,26.98979531,153.17,153.13,10.46]
[1748790716981,26.98979531,153.17,153.13,30.92110171]
[1748790719800,26.98950283,153.18,153.13,37.45124371]
[1748790719998,26.98910986,153.19,153.15,20.46110171]
[1748790720203,6.5275416,153.2,153.16,20.46110171]
[1748790720511,6.5275416,153.2,153.17,20.46110171]
[1748790722016,6.5275416,153.2,153.16,20.46110171]
[1748790722191,26.98864331,153.2,153.16,20.46110171]
[1748790722388,20.46110171,153.19,153.15,20.46110171]
[1748790723494,20.46110171,153.18,153.14,60.58110171]
[1748790723693,20.46110171,153.17,153.14,40.12]
[1748790723893,26.99018296,153.17,153.13,10.46]
[1748790724193,20.46110171,153.16,153.13,10.46]
[1748790724396,6.52908125,153.17,153.13,10.46]
[1748790724397,26.99018296,153.17,153.13,10.46]
[1748790726926,20.46110171,153.19,153.15,20.46110171]
[1748790727795,26.98851685,153.2,153.16,20.46110171]
[1748790729913,26.98851685,153.2,153.15,20.46110171]
[1748790730211,20.46110171,153.19,153.15,20.46110171]
[1748790731313,26.98923671,153.19,153.15,20.46110171]
[1748790731730,20.46110171,153.18,153.14,60.58110171]
[1748790733138,6.528135,153.19,153.15,20.46110171]
[1748790733941,26.98866777,153.2,153.16,20.46110171]
[1748790735223,149.0,153.21,153.16,20.46110171]
[1748790735224,175.98823766,153.21,153.16,20.46110171]
[1748790735424,155.52713595,153.21,153.17,20.46110171]
[1748790735632,155.52713595,153.21,153.18,20.46110171]
[1748790736214,155.52713595,153.21,153.17,20.46110171]
[1748790736447,155.52713595,153.21,153.15,20.46110171]
[1748790736448,20.46110171,153.19,153.15,20.46110171]
[1748790736636,26.9893691,153.18,153.14,60.58110171]
[1748790738624,26.9893691,153.18,153.14,20.46110171]
[1748790742053,20.46110171,153.19,153.15,20.46110171]
[1748790743046,6.52826739,153.18,153.15,20.46110171]
[1748790744249,6.52801619,153.19,153.15,20.46110171]
[1748790745537,6.52801619,153.19,153.16,20.46110171]
[1748790745733,26.98863366,153.2,153.16,20.46110171]
[1748790746137,6.52753195,153.2,153.16,20.46110171]
[1748790748965,6.52753195,153.2,153.17,20.46110171]
[1748790749252,6.52698909,153.21,153.18,20.46110171]
[1748790750961,6.52698909,153.21,153.17,20.46110171]
[1748790751841,26.9880908,153.21,153.17,20.46110171]
[1748790752250,26.9880908,153.21,153.16,20.46110171]
[1748790752557,20.46110171,153.19,153.13,16.99022746]
[1748790752754,20.46110171,153.19,153.13,10.46]
[1748790752946,20.46110171,153.19,153.14,20.46110171]
[1748790753349,20.46110171,153.18,153.14,20.46110171]
[1748790753647,20.46110171,153.18,153.13,16.9903774]
[1748790753849,26.98968758,153.18,153.14,20.46110171]
[1748790755856,26.98968758,153.18,153.13,10.46]
[1748790756056,26.98968758,153.18,153.14,20.46110171]
[1748790756557,20.46110171,153.17,153.13,30.92110171]
[1748790756740,20.46110171,153.16,153.13,10.46]
[1748790756945,20.46110171,153.16,153.12,20.46110171]
[1748790758247,26.99031241,153.16,153.12,20.46110171]
[1748790758438,6.5292107,153.16,153.13,20.46110171]
[1748790758649,20.46110171,153.17,153.13,20.46110171]
[1748790758851,26.98998207,153.17,153.13,20.46110171]
[1748790759467,6.52888036,153.17,153.13,20.46110171]
[1748790759653,26.98998207,153.17,153.13,20.46110171]
[1748790763979,26.98998207,153.17,153.11,6.53110382]
[1748790763980,22.11670171,153.16,153.11,6.53110382]
[1748790764155,22.11670171,153.16,153.04,21.37226891]
[1748790764156,46.46110171,153.12,153.04,21.37226891]
[1748790764346,1.6556,153.13,153.05,20.46110171]
[1748790764347,20.46110171,153.11,153.05,20.46110171]
[1748790764664,20.46110171,153.11,153.04,0.9111672]
[1748790764665,20.46110171,153.11,153.06,20.46110171]
[1748790765646,26.99319573,153.1,153.06,20.46110171]
[1748790765846,26.99319573,153.1,153.04,0.9111672]
[1748790765847,20.46110171,153.09,153.04,11.3511672]
[1748790766043,20.46110171,153.09,153.05,20.46110171]
[1748790766470,26.99319573,153.1,153.05,20.46110171]
[1748790767051,20.46110171,153.09,153.04,31.81226891]
[1748790767851,6.532532,153.08,153.04,31.81226891]
[1748790769351,6.532532,153.08,153.04,11.3511672]
[1748790769352,26.99363371,153.08,153.04,11.3511672]
[1748790770979,26.99363371,153.08,153.04,31.81226891]
[1748790771187,6.532532,153.08,153.05,20.46110171]
[1748790772173,6.53223626,153.09,153.07,20.46110171]
[1748790772975,36.78952094,153.11,153.04,11.3511672]
[1748790772976,6.53167864,153.1,153.06,20.46110171]
[1748790774798,16.32841923,153.11,153.08,20.46110171]
[1748790775875,22.85967127,153.11,153.08,20.46110171]
[1748790777367,6.53125204,153.11,153.1,20.46110171]
[1748790777571,6.53093835,153.12,153.1,20.46110171]
[1748790777877,22.85591521,153.14,153.11,20.46110171]
[1748790778594,22.85591521,153.14,153.1,20.46110171]
[1748790781207,43.31701692,153.14,153.1,20.46110171]
[1748790782409,22.85591521,153.14,153.1,20.46110171]
[1748790785803,22.85591521,153.14,153.11,20.46110171]
[1748790788501,43.31701692,153.14,153.1,20.46110171]
[1748790791947,20.46110171,153.11,153.07,20.46110171]
[1748790792538,6.53210529,153.09,153.06,20.46110171]
[1748790792722,6.53210529,153.09,153.07,20.46110171]
[1748790793037,6.53210529,153.09,153.04,37.3511672]
[1748790793038,6.53210529,153.09,153.08,20.46110171]
[1748790794133,6.53125204,153.11,153.08,20.46110171]
[1748790795129,6.53125204,153.11,153.07,20.46110171]
[1748790795337,20.46110171,153.11,153.07,20.46110171]
[1748790796541,20.46110171,153.11,153.06,20.46110171]
[1748790797038,20.46110171,153.11,153.07,20.46110171]
[1748790798441,6.53167864,153.1,153.07,20.46110171]
[1748790798735,43.32197695,153.1,153.06,20.46110171]
[1748790798935,43.32197695,153.1,153.05,20.46110171]
[1748790799142,20.46110171,153.09,153.05,20.46110171]
[1748790799434,20.46110171,153.09,153.04,11.3511672]
[1748790799629,20.46110171,153.08,153.04,31.81226891]
[1748790800639,20.46110171,153.09,153.04,31.81226891]
[1748790800941,20.46110171,153.09,153.05,20.46110171]
[1748790803441,6.532532,153.08,153.05,20.46110171]
[1748790804563,43.32496373,153.08,153.04,11.3511672]
[1748790804762,43.32496373,153.08,153.04,31.81226891]
[1748790807544,43.32496373,153.08,153.04,0.9111672]
[1748790807752,20.46110171,153.07,153.04,0.9111672]
[1748790807964,20.46110171,153.06,153.04,0.9111672]
[1748790808266,20.46110171,153.07,153.04,0.9111672]
[1748790808744,6.5333856,153.06,153.04,0.9111672]
[1748790811344,6.53311343,153.07,153.04,21.37226891]
[1748790811661,26.99278035,153.1,153.06,20.46110171]
[1748790811866,6.53167864,153.1,153.06,20.46110171]
[1748790812043,26.99278035,153.1,153.06,20.46110171]
[1748790814056,6.53167864,153.1,153.07,20.46110171]
[1748790814565,6.53167864,153.1,153.06,20.46110171]
[1748790814883,6.53167864,153.1,153.04,0.9111672]
[1748790815036,26.99278035,153.1,153.06,20.46110171]
[1748790815349,26.99278035,153.1,153.04,0.9111672]
[1748790815350,26.99278035,153.1,153.05,20.46110171]
[1748790815866,26.99278035,153.1,153.06,20.46110171]
[1748790818477,20.46110171,153.08,153.04,21.37226891]
[1748790818667,20.46110171,153.09,153.05,20.46110171]
[1748790819473,6.532532,153.08,153.05,20.46110171]
[1748790821861,26.993207,153.09,153.05,20.46110171]
[1748790822667,6.53210529,153.09,153.04,0.9111672]
[1748790822870,20.46110171,153.08,153.04,21.37226891]
[1748790824066,6.53295877,153.07,153.04,21.37226891]
[1748790824366,6.53295877,153.07,153.04,0.9111672]
[1748790824572,26.99406048,153.07,153.04,0.9111672]
[1748790828084,6.53295877,153.07,153.04,21.37226891]
[1748790830885,20.46110171,153.09,153.04,21.37226891]
[1748790831087,20.46110171,153.09,153.05,20.46110171]
[1748790831301,6.53125204,153.11,153.07,20.46110171]
[1748790831670,26.99235375,153.11,153.07,20.46110171]
[1748790837379,20.46110171,153.09,153.04,11.3511672]
[1748790837587,6.53295877,153.07,153.04,31.81226891]
[1748790838091,6.53295877,153.07,153.04,21.37226891]
[1748790839114,6.532532,153.08,153.04,21.37226891]
[1748790839707,6.532532,153.08,153.05,20.46110171]
[1748790840178,26.99363371,153.08,153.04,21.37226891]
[1748790840483,6.532532,153.08,153.05,20.46110171]
[1748790841821,6.532532,153.08,153.04,0.9111672]
[1748790841982,6.532532,153.08,153.05,20.46110171]
[1748790846581,26.99331612,153.09,153.05,20.46110171]
[1748790847104,6.53221441,153.09,153.06,20.46110171]
[1748790851205,26.99331612,153.09,153.05,20.46110171]
[1748790854515,6.53221441,153.09,153.06,20.46110171]
[1748790857209,6.53221441,153.09,153.06,13.10747605]
[1748790858124,6.53082549,153.12,153.08,13.10747605]
[1748790858439,1.5973,153.13,153.05,6.53381247]
[1748790858640,13.10747605,153.11,153.06,13.10747605]
[1748790859638,13.10747605,153.1,153.06,13.10747605]
[1748790860536,13.10747605,153.11,153.06,13.10747605]
[1748790860907,13.10747605,153.12,153.07,13.10747605]
[1748790861119,21.23529472,153.13,153.08,13.10747605]
[1748790861432,8.12781867,153.13,153.09,13.10747605]
[1748790861796,8.12781867,153.13,153.05,6.53378483]
[1748790861797,21.23529472,153.13,153.08,13.10747605]
[1748790863917,8.12781867,153.13,153.09,13.10747605]
[1748790864147,6.53051867,153.13,153.1,13.10747605]
[1748790864514,6.52997257,153.14,153.1,13.10747605]
[1748790865116,6.52968473,153.15,153.11,13.10747605]
[1748790865329,6.52968473,153.15,153.12,13.10747605]
[1748790866531,6.52968473,153.15,153.11,13.10747605]
[1748790867321,6.52968473,153.15,153.11,20.46493651]
[1748790868122,20.46493651,153.12,153.08,20.46493651]
[1748790868450,20.46493651,153.12,153.07,20.46493651]
[1748790868854,6.53125204,153.11,153.07,20.46493651]
[1748790869151,6.53125204,153.11,153.08,20.46493651]
[1748790871547,26.99618855,153.11,153.05,72.61364734]
[1748790871742,26.99618855,153.11,153.07,20.46493651]
[1748790872957,26.99618855,153.11,153.05,6.53364734]
[1748790873140,26.99618855,153.11,153.07,20.46493651]
[1748790873551,26.99618855,153.11,153.06,20.46493651]
[1748790876160,26.99618855,153.11,153.07,20.46493651]
[1748790876547,26.99618855,153.11,153.06,20.46493651]
[1748790876944,20.46493651,153.1,153.06,20.46493651]
[1748790877144,20.46493651,153.1,153.05,20.46493651]
[1748790877350,26.9970418,153.09,153.04,31.79610371]
[1748790878136,6.53210529,153.09,153.06,20.46493651]
[1748790878341,6.53180363,153.1,153.07,20.46493651]
[1748790881855,6.53180363,153.1,153.06,20.46493651]
[1748790882060,26.99674014,153.1,153.04,11.3311672]
[1748790882249,26.99674014,153.1,153.06,20.46493651]
[1748790882467,20.46493651,153.09,153.04,11.3311672]
[1748790882653,20.46493651,153.08,153.04,11.3311672]
[1748790883161,26.99674014,153.1,153.06,20.46493651]
[1748790883567,26.99674014,153.1,153.05,20.46493651]
[1748790884259,20.46493651,153.09,153.05,20.46493651]
[1748790884469,20.46493651,153.09,153.04,21.37610371]
[1748790886173,20.46493651,153.09,153.05,20.46493651]
[1748790887149,6.53210529,153.09,153.06,20.46493651]
[1748790887968,6.53210529,153.09,153.05,20.46493651]
[1748790888169,26.9970418,153.09,153.05,20.46493651]
[1748790891375,26.9970418,153.09,153.04,0.9111672]
[1748790891577,26.9970418,153.09,153.05,20.46493651]
[1748790892180,6.53210529,153.09,153.06,20.46493651]
[1748790892681,6.53200136,153.1,153.07,20.46493651]
[1748790893059,6.53200136,153.1,153.06,20.46493651]
[1748790897273,6.53200136,153.1,153.06,13.1064333]
[1748790898870,6.53200136,153.1,153.07,13.1064333]
[1748790900886,19.63786309,153.11,153.07,13.1064333]
[1748790901189,6.53142979,153.11,153.08,13.1064333]
[1748790902874,19.63730341,153.12,153.08,13.1064333]
[1748790905201,13.1064333,153.11,153.07,13.1064333]
[1748790905371,19.63730341,153.12,153.08,13.1064333]
[1748790906079,14.6213333,153.15,153.11,13.1064333]
[1748790906882,6.53013044,153.14,153.11,13.1064333]
[1748790907085,6.52970034,153.15,153.12,13.1064333]
[1748790908075,6.52911987,153.16,153.12,13.1064333]
[1748790908477,6.52911987,153.16,153.13,13.1064333]
[1748790908891,19.31154794,153.17,153.13,13.1064333]
[1748790909083,12.78269958,153.17,153.16,13.1064333]
[1748790909276,12.78269958,153.17,153.16,20.4537626]
[1748790911015,19.31139318,153.17,153.16,20.4537626]
[1748790911219,19.31139318,153.17,153.12,67.04441824]
[1748790911505,19.31139318,153.17,153.16,20.4537626]
[1748790912381,12.78269958,153.17,153.16,20.4537626]
[1748790914612,6.52726538,153.21,153.16,20.4537626]
[1748790914788,6.52726538,153.21,153.19,20.4537626]
[1748790915488,6.52656311,153.22,153.19,20.4537626]
[1748790915679,20.4537626,153.21,153.14,26.0]
[1748790915882,20.4537626,153.21,153.13,10.4]
[1748790915883,20.4537626,153.19,153.13,10.4]
[1748790916083,20.4537626,153.19,153.15,20.4537626]
[1748790916323,18.64964886,153.21,153.16,20.4537626]
[1748790916503,18.64964886,153.21,153.13,10.4]
[1748790916504,20.4537626,153.21,153.17,20.4537626]
[1748790916829,20.4537626,153.21,153.16,20.4537626]
[1748790917507,6.52741514,153.2,153.16,20.4537626]
[1748790919211,6.52741514,153.2,153.17,20.4537626]
[1748790919417,6.52714373,153.21,153.18,20.4537626]
[1748790919616,6.52714373,153.21,153.19,20.4537626]
[1748790920116,6.52714373,153.21,153.18,20.4537626]
[1748790920724,26.98032571,153.22,153.18,20.4537626]
[1748790922101,6.52656311,153.22,153.18,20.4537626]
[1748790924821,6.52656311,153.22,153.19,20.4537626]
[1748790925021,6.52656311,153.22,153.2,20.4537626]
[1748790925229,6.52622674,153.23,153.2,20.4537626]
[1748790925533,26.97998934,153.23,153.18,20.4537626]
[1748790926718,6.52622674,153.23,153.18,20.4537626]
[1748790926918,6.52622674,153.23,153.19,20.4537626]
[1748790927229,26.97998934,153.23,153.19,20.4537626]
[1748790928330,26.97998934,153.23,153.18,20.4537626]
[1748790931624,26.97998934,153.23,153.19,20.4537626]
[1748790932444,26.97998934,153.23,153.18,20.4537626]
[1748790932944,6.52698909,153.21,153.18,20.4537626]
[1748790933521,20.4537626,153.2,153.16,20.4537626]
[1748790934837,20.4537626,153.21,153.16,20.4537626]
[1748790935539,22.84162963,153.23,153.15,20.4537626]
[1748790935540,20.4537626,153.2,153.15,20.4537626]
[1748790935732,20.4537626,153.2,153.16,20.4537626]
[1748790935930,20.4537626,153.19,153.15,20.4537626]
[1748790936264,44.64964886,153.22,153.14,20.4537626]
[1748790936439,20.4537626,153.2,153.16,20.4537626]
[1748790937154,26.98160384,153.19,153.15,20.4537626]
[1748790938232,6.524434,153.27,153.18,20.4537626]
[1748790938536,6.524434,153.27,153.23,20.4537626]
[1748790939429,26.9781966,153.27,153.23,20.4537626]
[1748790939950,26.9781966,153.27,153.22,20.4537626]
[1748790940245,26.97904808,153.25,153.21,20.4537626]
[1748790940641,26.97904808,153.25,153.18,10.4]
[1748790940642,26.97904808,153.25,153.2,20.4537626]
[1748790941549,26.97904808,153.25,153.21,20.4537626]
[1748790943041,20.4537626,153.24,153.18,10.4]
[1748790943224,20.4537626,153.23,153.19,20.4537626]
[1748790943836,20.4537626,153.22,153.18,30.8537626]
[1748790944355,20.4537626,153.22,153.18,20.4537626]
[1748790944649,6.52698909,153.21,153.18,20.4537626]
[1748790945022,6.52698909,153.21,153.17,20.4537626]
[1748790945023,26.98075169,153.21,153.17,20.4537626]
[1748790945833,20.4537626,153.2,153.16,20.4537626]
[1748790946426,26.98075169,153.21,153.16,20.4537626]
[1748790946943,6.52698909,153.21,153.16,20.4537626]
[1748790947138,20.4537626,153.2,153.15,26.0]
[1748790947332,20.4537626,153.2,153.15,46.4537626]
[1748790949656,26.98160384,153.19,153.15,20.4537626]